bitfinex/quotes_SOLUSD_20251031
["timestamp","ask_amount","ask_price","bid_price","bid_amount"]
[1761929220643,0.67,186.6,186.55,5.36023462]
[1761929220939,5.49794337,186.59,186.54,5.36075278]
[1761929221258,6.45226651,186.6,186.54,5.36075278]
[1761929221464,20.592,186.61,186.57,5.49794337]
[1761929221763,20.592,186.61,186.55,0.72]
[1761929221764,20.592,186.61,186.58,5.49794337]
[1761929221950,20.592,186.61,186.58,10.85750209]
[1761929222265,20.592,186.61,186.58,5.49794337]
[1761929222458,20.592,186.61,186.57,5.49794337]
[1761929222865,21.262,186.61,186.57,5.49794337]
[1761929223159,21.262,186.61,186.56,10.85804772]
[1761929223339,102.3,186.6,186.56,10.85804772]
[1761929223739,102.3,186.6,186.56,11.57804772]
[1761929224171,6.16794337,186.59,186.55,5.3604321]
[1761929224542,107.79794337,186.6,186.55,10.85837547]
[1761929225064,0.71,186.59,186.55,10.85837547]
[1761929225362,102.3,186.6,186.56,5.49794337]
[1761929225877,107.79794337,186.6,186.55,10.85837547]
[1761929226042,0.71,186.59,186.54,6.16794337]
[1761929226246,0.71,186.59,186.54,10.85859736]
[1761929226569,0.71,186.59,186.54,11.52859736]
[1761929226869,102.3,186.6,186.56,5.49794337]
[1761929227076,102.3,186.6,186.57,5.49794337]
[1761929227277,9.60943642,186.62,186.59,5.49794337]
[1761929227562,9.60943642,186.62,186.61,5.49794337]
[1761929229344,9.60943642,186.62,186.61,10.85671299]
[1761929229569,9.60943642,186.62,186.61,11.52671299]
[1761929230342,10.31943642,186.62,186.56,13.40040438]
[1761929230672,15.10737979,186.62,186.56,18.89834775]
[1761929230863,15.10737979,186.62,186.57,10.85786189]
[1761929231053,9.60943642,186.62,186.58,5.49794337]
[1761929231372,3.89337499,186.61,186.58,5.35959611]
[1761929231951,3.89337499,186.61,186.59,0.67]
[1761929232271,3.89337499,186.61,186.58,11.52753948]
[1761929232474,3.89337499,186.61,186.59,6.16794337]
[1761929232869,3.89337499,186.61,186.58,10.85753948]
[1761929233061,10.10131836,186.61,186.54,0.67]
[1761929233375,3.89337499,186.6,186.56,10.85788623]
[1761929233553,3.89337499,186.59,186.56,5.35994286]
[1761929233762,3.89337499,186.58,186.56,6.02994286]
[1761929233962,6.20794337,186.61,186.56,11.52788623]
[1761929234161,3.90098374,186.6,186.56,11.52788623]
[1761929234468,3.90098374,186.59,186.56,10.85788623]
[1761929234672,3.90098374,186.58,186.57,6.16794337]
[1761929234969,3.90098374,186.61,186.57,6.16794337]
[1761929235165,3.90098374,186.6,186.57,6.16794337]
[1761929235352,3.90098374,186.59,186.57,6.02991103]
[1761929235551,3.90098374,186.58,186.57,11.5278544]
[1761929235758,3.90098374,186.58,186.57,10.8578544]
[1761929235949,3.90098374,186.58,186.57,24.25765072]
[1761929236149,9.60943642,186.62,186.57,24.25765072]
[1761929236370,3.90872609,186.61,186.58,0.67]
[1761929236562,9.60943642,186.62,186.58,0.67]
[1761929237271,0.65,186.71,186.59,9.78882769]
[1761929237469,3.51775493,186.73,186.68,5.49794337]
[1761929237470,3.90923342,186.7,186.68,5.49794337]
[1761929237676,3.90923342,186.69,186.68,5.49794337]
[1761929238055,3.90923342,186.69,186.66,0.67]
[1761929238261,3.9089435,186.68,186.67,5.49794337]
[1761929238770,3.9089435,186.68,186.67,6.16794337]
[1761929238950,3.9089435,186.68,186.67,0.67]
[1761929239150,3.9089435,186.68,186.64,0.67]
[1761929239470,3.9089435,186.67,186.66,5.49794337]
[1761929239670,3.9089435,186.67,186.63,10.85613872]
[1761929239885,10.78098926,186.72,186.59,0.67]
[1761929239886,5.49794337,186.65,186.59,0.67]
[1761929240173,3.9089435,186.64,186.6,5.49794337]
[1761929240394,3.9089435,186.63,186.6,5.49794337]
[1761929240597,3.9089435,186.62,186.59,10.85728738]
[1761929240762,3.91223679,186.61,186.6,5.49794337]
[1761929240957,3.91223679,186.64,186.6,6.16794337]
[1761929241177,3.91223679,186.63,186.6,6.16794337]
[1761929241389,3.91223679,186.62,186.6,5.49794337]
[1761929241555,6.14794337,186.65,186.6,11.52691313]
[1761929241556,3.91223679,186.61,186.6,11.52691313]
[1761929241887,3.91223679,186.61,186.6,10.85691313]
[1761929242093,3.91223679,186.61,186.6,11.52691313]
[1761929242876,3.91223679,186.61,186.6,6.02896976]
[1761929243257,3.91223679,186.61,186.6,11.52691313]
[1761929243458,3.91223679,186.61,186.6,10.85691313]
[1761929245688,3.91223679,186.61,186.6,5.35896976]
[1761929245854,3.91223679,186.61,186.6,6.02896976]
[1761929246062,3.91223679,186.61,186.6,11.52691313]
[1761929246596,4.56223679,186.61,186.54,14.07154552]
[1761929246787,3.91223679,186.6,186.55,5.49794337]
[1761929246963,3.91223679,186.59,186.55,5.49794337]
[1761929247163,3.91223679,186.58,186.55,5.49794337]
[1761929247364,3.91223679,186.57,186.56,5.36020583]
[1761929247593,3.91223679,186.57,186.55,5.36045058]
[1761929247887,3.91223679,186.56,186.54,5.49794337]
[1761929248070,3.91223679,186.55,186.5,5.49794337]
[1761929248270,3.91223679,186.55,186.48,6.16794337]
[1761929248271,9.41018016,186.54,186.48,6.16794337]
[1761929248578,3.91223679,186.53,186.5,5.49794337]
[1761929248888,3.91223679,186.52,186.5,6.16794337]
[1761929249086,3.91223679,186.51,186.48,5.49794337]
[1761929249294,5.49794337,186.53,186.48,5.36250536]
[1761929249478,3.92889441,186.52,186.48,5.36250536]
[1761929249678,3.92889441,186.51,186.48,5.36250536]
[1761929249978,6.14794337,186.53,186.48,5.36250536]
[1761929250285,3.92999501,186.52,186.48,11.53044873]
[1761929250589,3.92999501,186.51,186.48,11.53044873]
[1761929250777,5.49794337,186.54,186.48,11.53044873]
[1761929250973,3.92947454,186.53,186.48,11.53044873]
[1761929251170,3.92947454,186.52,186.48,11.53044873]
[1761929251378,26.73994337,186.54,186.48,11.53044873]
[1761929251571,9.42633719,186.53,186.48,6.03250536]
[1761929251766,3.92839382,186.52,186.42,20.592]
[1761929251995,5.49794337,186.49,186.43,6.03394357]
[1761929252187,3.92839382,186.48,186.43,5.36394357]
[1761929252385,3.92839382,186.47,186.44,5.49794337]
[1761929252690,6.29010494,186.49,186.43,10.86188694]
[1761929252892,3.92230137,186.48,186.43,10.86188694]
[1761929253076,3.92230137,186.47,186.43,5.36394357]
[1761929254769,3.92230137,186.47,186.43,18.77380249]
[1761929254974,3.92230137,186.47,186.44,0.71]
[1761929255201,20.592,186.48,186.45,5.49794337]
[1761929255367,20.592,186.49,186.43,18.77380249]
[1761929255569,20.592,186.49,186.46,8.34896388]
[1761929256099,20.592,186.49,186.47,8.34896388]
[1761929256483,20.592,186.49,186.46,8.34896388]
[1761929256682,20.592,186.49,186.46,9.05896388]
[1761929256897,20.592,186.49,186.46,5.36292664]
[1761929257097,20.592,186.49,186.44,13.71239149]
[1761929257390,28.94096388,186.49,186.44,5.36342761]
[1761929257595,8.34896388,186.47,186.42,5.36398422]
[1761929257771,8.34896388,186.46,186.41,5.36450274]
[1761929257977,8.34896388,186.47,186.41,13.71346662]
[1761929258287,8.63328702,186.46,186.41,5.36450274]
[1761929258895,9.34328702,186.46,186.41,5.36450274]
[1761929259200,20.592,186.43,186.41,5.36450274]
[1761929259509,10.34896387,186.55,186.41,5.36450274]
[1761929259510,9.78882769,186.53,186.42,9.05896388]
[1761929259676,8.34896388,186.51,186.45,8.34896388]
[1761929259998,8.34896388,186.5,186.45,8.34896388]
[1761929260502,0.71,186.5,186.45,8.34896388]
[1761929260675,0.71,186.5,186.46,5.36308055]
[1761929260976,0.71,186.5,186.46,13.71204443]
[1761929261179,0.85216157,186.52,186.47,8.34896388]
[1761929261402,0.14216157,186.51,186.47,8.34896388]
[1761929261774,0.14216157,186.51,186.46,18.77078193]
[1761929261775,0.71,186.5,186.46,27.11974581]
[1761929262798,0.71,186.5,186.46,13.71204443]
[1761929263523,0.71,186.5,186.41,8.34896388]
[1761929263524,29.08312545,186.47,186.41,8.34896388]
[1761929263700,0.14216157,186.47,186.41,5.36451907]
[1761929263879,8.34896388,186.46,186.41,5.36451907]
[1761929264401,9.05896388,186.46,186.41,5.36451907]
[1761929264603,0.71,186.46,186.42,8.34896388]
[1761929264803,0.71,186.46,186.42,13.71319518]
[1761929264985,0.71,186.46,186.41,8.34896388]
[1761929265178,0.71,186.46,186.42,8.34896388]
[1761929265490,0.71,186.46,186.4,18.77682402]
[1761929265692,102.3,186.45,186.41,8.34896388]
[1761929266687,102.3,186.45,186.42,13.71319518]
[1761929268125,102.3,186.45,186.42,14.42319518]
[1761929268327,102.3,186.45,186.44,8.34896388]
[1761929269000,102.3,186.45,186.43,8.34896388]
[1761929269203,102.3,186.45,186.42,18.77480956]
[1761929269410,102.3,186.45,186.42,27.12377344]
[1761929269721,102.3,186.45,186.43,8.34896388]
[1761929270217,102.3,186.45,186.44,8.34896388]
[1761929271010,102.3,186.45,186.44,5.36365586]
[1761929271408,102.3,186.45,186.44,13.71261974]
[1761929272494,102.3,186.45,186.44,14.42261974]
[1761929273003,102.3,186.45,186.44,5.36365586]
[1761929273207,102.3,186.45,186.44,13.71261974]
[1761929274742,102.3,186.45,186.44,14.42261974]
[1761929275332,31.09082769,186.51,186.44,14.42261974]
[1761929275333,20.592,186.51,186.44,27.8317594]
[1761929275502,102.3,186.53,186.5,8.34896388]
[1761929275696,102.3,186.52,186.5,8.34896388]
[1761929276002,103.01,186.52,186.49,8.34896388]
[1761929276203,103.01,186.52,186.48,8.34896388]
[1761929276410,103.01,186.52,186.49,5.36221781]
[1761929277428,103.01,186.52,186.49,13.71118169]
[1761929277814,102.3,186.52,186.5,8.34896388]
[1761929278615,102.3,186.52,186.5,5.36189429]
[1761929278825,102.3,186.52,186.5,13.71085817]
[1761929279833,103.01,186.52,186.5,13.71085817]
[1761929280134,102.3,186.52,186.5,13.71085817]
[1761929280511,0.71,186.51,186.5,5.36189429]
[1761929280830,102.3,186.52,186.5,5.36189429]
[1761929281030,102.3,186.52,186.5,13.71085817]
[1761929281418,103.01,186.52,186.5,8.34896388]
[1761929281624,20.592,186.49,186.42,0.71]
[1761929281811,103.01,186.48,186.44,8.34896388]
[1761929282131,102.3,186.48,186.47,8.34896388]
[1761929282705,0.71,186.54,186.48,18.76876876]
[1761929283022,0.71,186.54,186.48,19.47876876]
[1761929283223,21.302,186.54,186.51,8.34896388]
[1761929283614,0.71,186.57,186.53,8.34896388]
[1761929283809,0.71,186.56,186.54,8.34896388]
[1761929284437,0.71,186.56,186.53,8.34896388]
[1761929284816,20.592,186.54,186.49,8.34896388]
[1761929285015,20.592,186.54,186.5,8.34896388]
[1761929285224,0.67,186.53,186.5,8.34896388]
[1761929285534,0.67,186.53,186.51,8.34896388]
[1761929286030,0.67,186.53,186.46,0.67]
[1761929286236,0.67,186.53,186.49,8.34896388]
[1761929286619,8.63328702,186.55,186.52,8.34896388]
[1761929286620,20.592,186.55,186.52,8.34896388]
[1761929286824,0.67,186.56,186.53,5.36106792]
[1761929287921,4.58389648,186.56,186.51,13.71032354]
[1761929288122,20.592,186.51,186.43,0.67]
[1761929288318,3.91389648,186.5,186.46,8.34896388]
[1761929288515,3.91389648,186.5,186.46,9.01896388]
[1761929288731,131.91096388,186.54,186.49,5.36221781]
[1761929289041,3.91665116,186.53,186.49,13.71118169]
[1761929289332,3.91665116,186.53,186.5,8.34896388]
[1761929289539,9.01896388,186.52,186.47,5.36253254]
[1761929289743,3.91665116,186.51,186.47,5.36253254]
[1761929289928,25.17865116,186.51,186.47,5.36253254]
[1761929290122,4.58793305,186.5,186.47,5.36253254]
[1761929290322,4.58793305,186.5,186.46,5.36300537]
[1761929290524,0.67,186.49,186.46,5.36300537]
[1761929290840,0.67,186.49,186.45,5.36336819]
[1761929290841,4.58793305,186.49,186.45,5.36336819]
[1761929291022,4.58793305,186.49,186.45,13.71233207]
[1761929291229,3.91793305,186.48,186.45,13.71233207]
[1761929291533,3.91793305,186.48,186.45,27.12075255]
[1761929291740,3.91793305,186.48,186.45,14.38233207]
[1761929291913,3.91793305,186.48,186.45,13.71233207]
[1761929292115,3.91793305,186.47,186.45,5.36336819]
[1761929292429,3.92789975,186.46,186.43,5.36386178]
[1761929292633,12.27612096,186.45,186.4,0.67]
[1761929292942,3.92715708,186.44,186.4,0.67]
[1761929293113,28.94096388,186.46,186.4,6.0348068]
[1761929293315,3.92726805,186.45,186.4,14.38377068]
[1761929293515,3.92726805,186.44,186.41,0.67]
[1761929293727,102.3,186.49,186.43,8.34896388]
[1761929293934,3.92943808,186.48,186.46,8.34896388]
[1761929294140,3.92943808,186.47,186.46,9.01896388]
[1761929294313,3.92943808,186.47,186.46,8.34896388]
[1761929294515,102.3,186.49,186.46,8.34896388]
[1761929294714,3.93093911,186.48,186.44,18.77279552]
[1761929295034,102.3,186.49,186.44,18.77279552]
[1761929295226,3.93177142,186.48,186.44,18.77279552]
[1761929295426,106.23177142,186.47,186.42,5.3639632]
[1761929295619,3.93177142,186.46,186.42,5.3639632]
[1761929295817,3.93177142,186.45,186.42,14.38292708]
[1761929296046,3.93177142,186.44,186.43,9.01896388]
[1761929296226,3.93177142,186.46,186.43,9.01896388]
[1761929296433,3.93177142,186.45,186.43,9.01896388]
[1761929296622,3.93177142,186.44,186.42,18.77454146]
[1761929296822,102.3,186.47,186.43,27.12276637]
[1761929297039,3.93135814,186.46,186.43,18.77380249]
[1761929297216,102.3,186.47,186.43,6.08394357]
[1761929297217,102.96,186.47,186.43,6.08394357]
[1761929297417,3.93125346,186.46,186.43,6.08394357]
[1761929297624,3.93125346,186.45,186.43,5.36394357]
[1761929297826,3.93125346,186.44,186.43,5.36394357]
[1761929298037,3.93125346,186.45,186.43,13.71290745]
[1761929298249,3.93125346,186.44,186.43,13.71290745]
[1761929298551,3.93125346,186.45,186.43,13.71290745]
[1761929298717,3.93125346,186.44,186.43,13.71290745]
[1761929298916,3.93125346,186.45,186.43,13.71290745]
[1761929299122,3.93125346,186.44,186.43,13.71290745]
[1761929299542,3.93125346,186.45,186.43,13.71290745]
[1761929299743,3.93125346,186.44,186.43,13.71290745]
[1761929299945,3.93125346,186.45,186.43,13.71290745]
[1761929300152,102.3,186.47,186.44,9.06896388]
[1761929300352,3.93066864,186.46,186.44,0.72]
[1761929300528,3.93066864,186.46,186.43,18.77380249]
[1761929300729,3.93066864,186.46,186.43,19.49380249]
[1761929300946,3.93066864,186.46,186.44,0.72]
[1761929301550,20.592,186.49,186.45,8.34896388]
[1761929301732,3.93043242,186.48,186.46,8.34896388]
[1761929302045,3.93043242,186.47,186.46,8.34896388]
[1761929302426,3.93043242,186.47,186.43,18.77380249]
[1761929302748,3.93043242,186.46,186.45,8.34896388]
[1761929303054,3.93043242,186.48,186.45,13.71233207]
[1761929303225,3.93043242,186.47,186.46,8.34896388]
[1761929303429,3.93043242,186.47,186.45,13.71233207]
[1761929303647,3.93043242,186.46,186.45,13.71233207]
[1761929303848,3.93043242,186.48,186.45,13.71233207]
[1761929304162,3.93043242,186.47,186.45,13.71233207]
[1761929304330,3.93043242,186.46,186.45,13.71233207]
[1761929304853,3.93043242,186.48,186.45,14.43233207]
[1761929305055,3.93043242,186.47,186.45,19.49178867]
[1761929305258,13.32569138,186.54,186.45,19.49178867]
[1761929305259,0.66,186.55,186.45,19.49178867]
[1761929305437,0.66,186.55,186.46,0.72]
[1761929305633,0.94432314,186.55,186.46,0.72]
[1761929306064,0.66,186.54,186.46,0.72]
[1761929306267,21.252,186.57,186.53,8.34896388]
[1761929306552,2.80356515,186.58,186.55,8.34896388]
[1761929306740,9.78882769,186.6,186.55,8.34896388]
[1761929306741,0.66,186.59,186.55,8.34896388]
[1761929306942,20.592,186.57,186.56,5.36020583]
[1761929307148,20.592,186.57,186.54,13.7095463]
[1761929307370,21.252,186.57,186.54,13.7095463]
[1761929308133,1.99999999,186.55,186.54,8.34896388]
[1761929308338,1.99999999,186.55,186.53,8.34896388]
[1761929308633,1.99999999,186.54,186.52,8.34896388]
[1761929308956,1.99999999,186.54,186.41,15.28218125]
[1761929308957,1.99999999,186.54,186.53,8.34896388]
[1761929309734,1.99999999,186.54,186.52,8.34896388]
[1761929310861,0.28432314,186.55,186.53,8.34896388]
[1761929311051,1.99999999,186.52,186.44,20.592]
[1761929311550,1.99999999,186.51,186.44,20.592]
[1761929312138,1.99999999,186.51,186.5,8.34896388]
[1761929312331,1.99999999,186.51,186.49,8.34896388]
[1761929312757,1.99999999,186.51,186.43,45.59352034]
[1761929313054,1.99999999,186.5,186.49,5.36221781]
[1761929316540,1.99999999,186.49,186.48,8.34896388]
[1761929316734,1.99999999,186.49,186.43,45.59352034]
[1761929316735,1.99999999,186.47,186.43,27.12276637]
[1761929316960,1.99999999,186.45,186.43,27.12276637]
[1761929317161,110.64896388,186.49,186.43,27.12276637]
[1761929317162,1.99999999,186.46,186.44,8.34896388]
[1761929317378,1.99999999,186.46,186.45,5.49494836]
[1761929317673,1.99999999,186.46,186.44,5.49494836]
[1761929318036,1.99999999,186.46,186.43,18.77380249]
[1761929318240,1.99999999,186.46,186.44,5.49494836]
[1761929318665,1.99999999,186.47,186.45,10.85831655]
[1761929318860,1.99999999,186.47,186.46,5.49494836]
[1761929320176,104.29999999,186.49,186.46,5.49494836]
[1761929320384,104.29999999,186.49,186.47,5.49494836]
[1761929320875,1.99999999,186.49,186.48,5.36250536]
[1761929321079,0.71,186.56,186.48,51.07624393]
[1761929321396,2.44144584,186.54,186.49,2.1571227]
[1761929321573,2.44144584,186.54,186.48,20.92589146]
[1761929321574,0.28432314,186.52,186.48,20.92589146]
[1761929321885,6.36534779,186.52,186.48,18.76876876]
[1761929322177,4.63390195,186.51,186.48,5.36250536]
[1761929322406,6.36534779,186.5,186.47,5.36271719]
[1761929322555,3.92390195,186.49,186.47,5.36271719]
[1761929322760,4.63390195,186.49,186.47,5.36271719]
[1761929323059,0.99432314,186.48,186.46,5.36308055]
[1761929323382,4.91822509,186.48,186.46,5.36308055]
[1761929323583,0.99432314,186.48,186.46,5.36308055]
[1761929325279,0.28432314,186.52,186.47,2.1571227]
[1761929325476,4.06533735,186.52,186.49,2.1571227]
[1761929325682,0.14216157,186.51,186.49,2.1571227]
[1761929326062,106.22317578,186.52,186.5,2.1571227]
[1761929326270,0.71,186.54,186.51,2.1571227]
[1761929326469,3.92330005,186.53,186.5,2.1571227]
[1761929327183,4.63330005,186.53,186.51,5.3616428]
[1761929327480,0.28432314,186.51,186.5,5.36189193]
[1761929327684,4.20762319,186.51,186.48,5.3623173]
[1761929327984,3.92342865,186.5,186.48,5.3623173]
[1761929328183,0.28432314,186.51,186.48,5.3623173]
[1761929328368,0.28432314,186.49,186.47,5.36274106]
[1761929328684,4.20735607,186.49,186.44,5.36365586]
[1761929328862,4.20735607,186.49,186.44,10.85647086]
[1761929329181,0.71,186.48,186.44,10.85647086]
[1761929329383,0.71,186.48,186.45,5.492815]
[1761929330084,4.20735607,186.49,186.45,5.492815]
[1761929330681,4.91735607,186.49,186.45,5.492815]
[1761929330880,4.63303293,186.48,186.44,24.26561052]
[1761929331681,3.92303293,186.48,186.45,5.492815]
[1761929332182,3.92421901,186.47,186.44,19.47279552]
[1761929332355,0.99432314,186.49,186.45,5.492815]
[1761929332681,3.9242199,186.48,186.45,5.492815]
[1761929333088,0.28432314,186.47,186.44,10.85647086]
[1761929333464,0.99432314,186.47,186.44,5.36365586]
[1761929333783,0.99432314,186.47,186.44,10.85647086]
[1761929333960,0.71,186.46,186.44,5.36365586]
[1761929334573,0.71,186.46,186.44,10.85647086]
[1761929335085,0.28432314,186.47,186.45,5.492815]
[1761929335266,0.99432314,186.47,186.46,5.36308055]
[1761929335590,0.28432314,186.47,186.46,5.36308055]
[1761929335759,4.20760364,186.47,186.46,5.36308055]
[1761929335958,0.99432314,186.47,186.46,5.36308055]
[1761929336373,4.91760364,186.47,186.45,5.492815]
[1761929336583,0.99432314,186.47,186.45,5.492815]
[1761929336982,0.28432314,186.47,186.45,5.492815]
[1761929337688,102.58432314,186.47,186.45,5.492815]
[1761929338067,103.29432314,186.47,186.45,5.492815]
[1761929338257,103.29432314,186.47,186.45,5.36336819]
[1761929338463,0.71,186.46,186.45,5.36336819]
[1761929338685,102.58432314,186.47,186.45,5.36336819]
[1761929338885,103.29432314,186.47,186.45,5.36336819]
[1761929339402,102.58432314,186.47,186.43,13.40918003]
[1761929339583,0.71,186.46,186.43,13.40918003]
[1761929339772,102.58432314,186.47,186.43,18.90199503]
[1761929340168,102.58432314,186.47,186.44,6.192815]
[1761929340368,4.20619422,186.46,186.43,5.492815]
[1761929341195,0.99432314,186.46,186.43,5.492815]
[1761929341397,4.91494611,186.46,186.44,5.36365586]
[1761929342084,4.91494611,186.46,186.41,0.7]
[1761929342398,5.77713814,186.44,186.39,24.27064642]
[1761929342587,106.22062297,186.43,186.39,24.27064642]
[1761929342919,106.22062297,186.43,186.32,5.492815]
[1761929342920,0.28432314,186.39,186.32,5.492815]
[1761929343211,9.69627127,186.39,186.34,5.492815]
[1761929343375,0.28432314,186.37,186.33,5.492815]
[1761929343582,3.91913313,186.36,186.34,5.36653429]
[1761929343784,0.28432314,186.37,186.34,5.36653429]
[1761929343984,3.91534286,186.36,186.34,5.36653429]
[1761929344199,0.99432314,186.37,186.34,5.36653429]
[1761929344493,3.91221685,186.36,186.34,5.36653429]
[1761929344695,4.61221685,186.36,186.34,5.36653429]
[1761929344996,3.91221685,186.36,186.34,5.36653429]
[1761929345198,0.28432314,186.37,186.34,5.36653429]
[1761929345400,4.89394004,186.37,186.34,5.36653429]
[1761929345705,4.89394004,186.37,186.33,13.41698083]
[1761929346002,3.9096169,186.36,186.33,13.41698083]
[1761929346204,0.7,186.41,186.35,5.492815]
[1761929346375,24.49936562,186.4,186.36,5.492815]
[1761929346571,0.98432314,186.41,186.34,0.66]
[1761929346572,3.90736562,186.39,186.38,5.492815]
[1761929346780,3.90788096,186.4,186.38,5.492815]
[1761929346984,3.90788096,186.39,186.38,5.492815]
[1761929347189,3.90788096,186.41,186.38,5.492815]
[1761929347385,3.90788096,186.4,186.38,5.492815]
[1761929347598,0.98432314,186.42,186.39,5.36509469]
[1761929347791,3.90908835,186.41,186.38,5.36532609]
[1761929347983,3.90908835,186.4,186.38,5.36532609]
[1761929348578,3.90908835,186.39,186.38,5.36532609]
[1761929348801,102.58432314,186.42,186.38,24.93159746]
[1761929348978,3.90948712,186.41,186.4,5.492815]
[1761929349391,3.90948712,186.41,186.39,5.492815]
[1761929349595,3.90948712,186.41,186.4,5.36480686]
[1761929349996,102.3,186.42,186.4,10.85762186]
[1761929351516,102.3,186.42,186.4,5.36480686]
[1761929351693,102.3,186.42,186.4,10.85762186]
[1761929352000,102.3,186.42,186.41,5.492815]
[1761929352183,106.20692999,186.42,186.41,5.492815]
[1761929352502,6.192815,186.47,186.41,6.152815]
[1761929352684,4.60766721,186.46,186.43,5.492815]
[1761929352879,3.90766721,186.45,186.43,5.492815]
[1761929353092,4.60766721,186.45,186.4,18.77682402]
[1761929353291,5.492815,186.43,186.4,5.36480686]
[1761929353624,10.07315083,186.4,186.34,5.492815]
[1761929353899,10.07315083,186.4,186.24,9.70832878]
[1761929353900,5.77713814,186.35,186.31,5.36739842]
[1761929354092,5.492815,186.34,186.31,5.36739842]
[1761929354300,21.57632314,186.35,186.31,5.36739842]
[1761929354482,27.06913814,186.35,186.31,5.36739842]
[1761929354795,0.7,186.34,186.31,5.36739842]
[1761929355596,0.7,186.34,186.31,18.78589447]
[1761929356296,4.59969597,186.34,186.3,5.46767124]
[1761929356611,10.09251097,186.34,186.3,5.46767124]
[1761929356782,10.10251097,186.33,186.3,5.46767124]
[1761929356983,0.71,186.32,186.3,5.46767124]
[1761929358581,0.28432314,186.31,186.3,5.46767124]
[1761929359007,103.29432314,186.31,186.3,0.1]
[1761929359189,103.29432314,186.31,186.3,5.46768652]
[1761929359595,103.29432314,186.31,186.3,0.1]
[1761929360118,105.45664629,186.31,186.3,0.1]
[1761929360289,103.29432314,186.31,186.3,0.1]
[1761929361317,16.83379087,186.31,186.3,0.1]
[1761929361522,42.79318929,186.31,186.3,0.1]
[1761929361813,14.67146772,186.31,186.3,0.1]
[1761929361993,10.49882769,186.35,186.3,7.63000967]
[1761929362196,0.71,186.35,186.3,19.57690283]
[1761929362395,21.302,186.34,186.32,2.16232315]
[1761929362704,20.592,186.34,186.32,2.16232315]
[1761929362907,0.71,186.38,186.33,2.16232315]
[1761929363100,20.592,186.36,186.34,2.16232315]
[1761929363282,0.99432314,186.38,186.34,2.16232315]
[1761929363488,0.71,186.37,186.34,2.16232315]
[1761929364010,24.47757591,186.38,186.34,7.52880378]
[1761929364208,4.87847741,186.37,186.34,7.52880378]
[1761929365097,4.87847741,186.37,186.34,20.94513951]
[1761929365409,4.87847741,186.37,186.34,5.36648063]
[1761929366924,5.36392522,186.44,186.34,5.36648063]
[1761929366925,0.71,186.48,186.36,5.50183314]
[1761929367214,0.71,186.46,186.37,20.592]
[1761929367513,0.71,186.51,186.45,5.50183314]
[1761929367720,0.71,186.51,186.38,0.69]
[1761929367881,5.50183314,186.45,186.35,0.69]
[1761929368088,0.14216157,186.44,186.39,5.50183314]
[1761929368304,0.85216157,186.44,186.41,5.36451907]
[1761929368579,0.99432314,186.44,186.41,5.36451907]
[1761929368982,0.71,186.48,186.43,5.50183314]
[1761929369183,0.71,186.48,186.46,5.50183314]
[1761929369409,9.78882769,186.5,186.46,5.50183314]
[1761929369708,0.71,186.5,186.47,5.50183314]
[1761929369925,20.592,186.49,186.47,5.50183314]
[1761929370087,0.71,186.5,186.47,5.50183314]
[1761929370287,0.71,186.49,186.47,5.50183314]
[1761929370488,21.302,186.49,186.47,5.36256931]
[1761929370691,0.14216157,186.48,186.46,5.50183314]
[1761929370892,0.14216157,186.48,186.45,5.36315793]
[1761929370893,0.85216157,186.48,186.45,10.86499107]
[1761929371102,0.85216157,186.48,186.45,5.36315793]
[1761929371592,0.85216157,186.48,186.4,18.91339696]
[1761929371593,5.78615628,186.46,186.4,18.91339696]
[1761929371805,0.28432314,186.44,186.41,5.36427516]
[1761929372195,0.99432314,186.44,186.41,5.36427516]
[1761929372402,0.99432314,186.44,186.4,5.36480686]
[1761929372603,0.99432314,186.44,186.4,10.86664]
[1761929373004,0.99432314,186.44,186.4,5.36480686]
[1761929373200,0.99432314,186.44,186.4,10.86664]
[1761929374303,20.592,186.45,186.42,5.50183314]
[1761929374710,9.78882769,186.48,186.44,5.50183314]
[1761929374933,20.592,186.45,186.44,5.50183314]
[1761929375510,20.592,186.45,186.43,5.50183314]
[1761929375718,0.28432314,186.47,186.44,5.50183314]
[1761929376231,0.98432314,186.47,186.44,10.86530073]
[1761929377497,0.7,186.46,186.42,5.36399087]
[1761929377833,5.78615628,186.44,186.4,5.36456897]
[1761929378138,0.28432314,186.42,186.39,5.36504424]
[1761929378425,0.28432314,186.4,186.35,5.50183314]
[1761929378726,5.78615628,186.4,186.35,5.36624631]
[1761929378929,0.28432314,186.4,186.36,5.50183314]
[1761929379103,20.592,186.38,186.35,5.36624631]